bitfinex/quotes_SOLUSD_20250413
["timestamp","ask_amount","ask_price","bid_price","bid_amount"]
[1744530605210,0.03,128.8,128.78,1.0]
[1744530605395,0.03,128.8,128.78,8.765]
[1744530606107,0.03,128.8,128.78,1.0]
[1744530606909,0.03,128.8,128.79,1.0]
[1744530607092,0.03,128.8,128.78,1.0]
[1744530607293,14.14360701,128.79,128.73,1.0]
[1744530607611,14.14360701,128.78,128.75,1.0]
[1744530608311,14.14360701,128.79,128.75,1.0]
[1744530608801,7.7651,128.78,128.75,1.0]
[1744530608998,14.14360701,128.77,128.73,1.0]
[1744530609198,7.18,128.76,128.75,1.0]
[1744530609600,7.18,128.76,128.74,1.0]
[1744530610613,7.18,128.76,128.73,15.14360701]
[1744530610911,7.18,128.76,128.73,1.0]
[1744530611124,7.18,128.76,128.7,30.77282935]
[1744530611125,14.14360701,128.74,128.7,30.77282935]
[1744530611297,14.14360701,128.73,128.71,1.0]
[1744530612225,14.14360701,128.72,128.7,1.0]
[1744530612515,21.24360701,128.71,128.68,0.063]
[1744530612924,29.01320701,128.71,128.68,0.063]
[1744530613091,14.14360701,128.7,128.68,0.063]
[1744530613297,22.67039579,128.7,128.68,1.063]
[1744530613607,22.67039579,128.69,128.68,0.063]
[1744530615020,30.44099579,128.69,128.68,0.063]
[1744530615227,49.51712936,128.69,128.68,0.063]
[1744530615391,68.94362936,128.69,128.63,1.0]
[1744530615587,22.67039579,128.65,128.63,1.0]
[1744530615814,29.77039579,128.65,128.63,1.0]
[1744530616198,29.77039579,128.65,128.6,0.063]
[1744530616392,29.77039579,128.65,128.61,22.67039579]
[1744530616718,7.7736,128.64,128.6,0.063]
[1744530616924,30.44399579,128.64,128.6,0.063]
[1744530617413,22.67039579,128.62,128.6,0.063]
[1744530617816,22.67039579,128.61,128.6,0.063]
[1744530618813,30.44579579,128.61,128.6,0.063]
[1744530625526,30.44579579,128.61,128.6,0.0001]
[1744530629125,49.52192936,128.61,128.6,0.0001]
[1744530630924,50.52192936,128.61,128.6,0.0001]
[1744530631130,22.67039579,128.55,128.54,0.063]
[1744530631306,29.79039579,128.55,128.54,0.063]
[1744530631506,7.12,128.55,128.54,0.063]
[1744530633121,14.899,128.55,128.54,0.063]
[1744530636849,14.899,128.55,128.54,14.26118179]
[1744530636850,7.12,128.55,128.54,14.26118179]
[1744530638134,29.09718179,128.55,128.54,0.063]
[1744530638720,14.899,128.55,128.54,0.063]
[1744530643645,7.12,128.55,128.54,0.063]
[1744530643828,33.64268179,128.58,128.54,0.063]
[1744530643829,7.02,128.57,128.54,0.063]
[1744530644028,7.02,128.57,128.54,14.26118179]
[1744530644942,7.02,128.57,128.54,0.063]
[1744530646428,7.7784,128.56,128.54,0.063]
[1744530654056,14.19818179,128.55,128.54,0.063]
[1744530655260,21.97718179,128.55,128.54,0.063]
[1744530655862,14.799,128.55,128.54,0.063]
[1744530657566,19.4402,128.6,128.54,14.26118179]
[1744530657863,7.02,128.59,128.55,2.88875641]
[1744530658066,7.02,128.59,128.55,17.0869382]
[1744530658443,7.7772,128.58,128.54,14.26118179]
[1744530658861,7.7772,128.58,128.55,14.19818179]
[1744530659367,7.7772,128.58,128.56,2.89606696]
[1744530660242,7.7772,128.58,128.55,14.19818179]
[1744530661266,7.7772,128.58,128.54,0.063]
[1744530661457,7.7772,128.58,128.54,14.26118179]
[1744530661946,7.7772,128.58,128.55,2.90024054]
[1744530662764,7.7772,128.58,128.56,2.90024054]
[1744530663144,14.19818179,128.57,128.56,2.90024054]
[1744530663564,14.19818179,128.57,128.54,0.063]
[1744530663763,14.19818179,128.56,128.54,0.063]
[1744530664265,7.779,128.55,128.54,0.063]
[1744530664563,7.779,128.55,128.54,2.96663411]
[1744530665442,14.799,128.55,128.54,2.96663411]
[1744530665755,28.99718179,128.55,128.54,2.96663411]
[1744530666245,28.99718179,128.55,128.54,0.063]
[1744530668473,14.799,128.55,128.54,0.063]
[1744530669168,7.02,128.55,128.54,0.063]
[1744530669546,7.02,128.55,128.54,14.26118179]
[1744530670158,14.7979,128.57,128.54,17.16621541]
[1744530670358,14.7979,128.57,128.54,2.96803362]
[1744530670875,14.7979,128.57,128.54,0.063]
[1744530671982,14.7979,128.57,128.55,2.90651951]
[1744530672858,14.7979,128.57,128.54,0.063]
[1744530674182,7.7773,128.58,128.54,14.26118179]
[1744530674359,19.4401,128.6,128.57,14.19818179]
[1744530674360,6.9,128.6,128.57,14.19818179]
[1744530674961,6.9,128.6,128.56,14.19818179]
[1744530675189,6.9,128.6,128.57,17.10616375]
[1744530675393,6.9,128.6,128.57,2.90798196]
[1744530675578,21.09818179,128.6,128.57,2.90798196]
[1744530675969,14.19818179,128.59,128.54,14.26118179]
[1744530676169,7.7778,128.57,128.54,0.063]
[1744530676785,7.7778,128.57,128.55,2.90722842]
[1744530677894,7.7778,128.57,128.54,0.063]
[1744530678491,14.19818179,128.55,128.54,0.063]
[1744530678786,21.09818179,128.55,128.54,0.063]
[1744530679491,15.98878152,128.55,128.54,0.063]
[1744530680093,9.08878152,128.55,128.54,0.063]
[1744530680293,15.98878152,128.55,128.54,0.063]
[1744530680796,23.76778152,128.55,128.54,0.063]
[1744530681300,28.8801556,128.55,128.54,0.063]
[1744530690483,21.1011556,128.55,128.54,0.063]
[1744530691697,6.9,128.55,128.54,0.063]
[1744530698123,28.8801556,128.55,128.54,0.063]
[1744530701313,23.77168563,128.55,128.54,0.063]
[1744530704519,81.0,128.58,128.54,9.15568563]
[1744530704808,6.84,128.58,128.55,9.09268563]
[1744530705105,6.84,128.58,128.54,9.15568563]
[1744530705506,14.6174,128.58,128.54,9.15568563]
[1744530707401,14.6174,128.58,128.54,14.2552942]
[1744530707609,6.84,128.58,128.55,14.1922942]
[1744530707901,6.84,128.58,128.57,14.1922942]
[1744530708293,266.9,128.61,128.57,14.1922942]
[1744530708491,14.6151,128.62,128.58,14.1922942]
[1744530712312,28.8073942,128.62,128.57,14.1922942]
[1744530712692,14.6151,128.62,128.58,14.1922942]
[1744530713211,14.6151,128.62,128.54,7.8424]
[1744530713212,14.1922942,128.6,128.54,7.8424]
[1744530713390,14.1922942,128.6,128.55,17.09014649]
[1744530713597,14.1922942,128.59,128.55,17.09014649]
[1744530713912,34.0522,128.62,128.55,17.09014649]
[1744530713913,14.1922942,128.6,128.55,17.09014649]
[1744530714101,14.1922942,128.6,128.55,14.1922942]
[1744530715011,7.7766,128.59,128.54,0.063]
[1744530715217,21.9688942,128.59,128.54,0.063]
[1744530715398,21.9688942,128.59,128.55,14.1922942]
[1744530716413,14.1922942,128.57,128.54,0.063]
[1744530716605,14.1922942,128.56,128.54,0.063]
[1744530717604,21.9712942,128.56,128.54,0.063]
[1744530718120,14.1922942,128.55,128.54,0.063]
[1744530718604,21.9712942,128.56,128.54,0.063]
[1744530718798,14.1922942,128.55,128.54,0.063]
[1744530719328,14.1922942,128.55,128.54,0.0001]
[1744530719617,21.9712942,128.56,128.54,0.0001]
[1744530719799,6.84,128.55,128.54,0.0001]
[1744530721219,14.619,128.55,128.54,0.0001]
[1744530721804,6.84,128.55,128.54,0.0001]
[1744530722215,6.84,128.55,128.54,14.1923942]
[1744530722719,6.84,128.55,128.54,0.0001]
[1744530723522,14.619,128.55,128.54,0.0001]
[1744530725819,6.84,128.55,128.54,0.0001]
[1744530726615,81.0,128.57,128.54,14.1923942]
[1744530726803,88.778,128.57,128.54,14.1923942]
[1744530727618,88.778,128.57,128.54,0.0001]
[1744530728411,14.1922942,128.56,128.54,0.0001]
[1744530729424,7.779,128.55,128.54,0.0001]
[1744530732325,95.1922942,128.57,128.54,0.0001]
[1744530732326,7.7787,128.56,128.54,0.0001]
[1744530733414,88.778,128.57,128.54,14.1923942]
[1744530733614,88.778,128.57,128.54,0.0001]
[1744530735131,102.9702942,128.57,128.54,0.0001]
[1744530735332,9.08725747,128.56,128.54,0.0001]
[1744530736234,97.86525747,128.57,128.54,0.0001]
[1744530740832,27.8790679,128.55,128.54,0.0001]
[1744530741024,28.16339104,128.55,128.54,0.0001]
[1744530741220,0.28432314,128.54,128.51,0.063]
[1744530741522,9.08725747,128.52,128.51,0.063]
[1744530743431,21.99269714,128.52,128.51,0.063]
[1744530746220,7.7808,128.52,128.51,0.063]
[1744530750640,42.72943071,128.52,128.51,0.0001]
[1744530750940,45.07613357,128.5,128.49,0.03]
[1744530751139,59.28803071,128.5,128.49,0.03]
[1744530751817,40.21189714,128.5,128.49,0.03]
[1744530752826,47.99399714,128.5,128.49,0.03]
[1744530754123,21.99399714,128.5,128.49,0.03]
[1744530765123,21.99399714,128.5,128.48,0.063]
[1744530765124,41.07013071,128.5,128.48,0.063]
[1744530765345,21.05189714,128.49,128.48,0.063]
[1744530766852,28.83459714,128.49,128.48,0.063]
[1744530769250,23.72173531,128.49,128.48,0.063]
[1744530772935,14.6227,128.49,128.48,0.063]
[1744530773336,23.72173531,128.49,128.48,0.063]
[1744530777934,14.6227,128.49,128.48,0.063]
[1744530778149,6.84,128.49,128.48,0.063]
[1744530778755,14.6227,128.49,128.48,0.063]
[1744530779760,23.72173531,128.49,128.48,0.063]
[1744530785563,6.84,128.49,128.48,0.063]
[1744530786946,15.93903531,128.49,128.48,0.063]
[1744530787863,35.01516888,128.49,128.48,0.063]
[1744530788954,42.79786888,128.49,128.48,0.063]
[1744530793351,19.07613357,128.48,128.47,0.0001]
[1744530793550,109.17516888,128.48,128.47,0.0001]
[1744530794354,116.95846888,128.48,128.47,0.0001]
[1744530794762,153.35461012,128.48,128.47,0.0001]
[1744530798149,72.35461012,128.48,128.46,0.0001]
[1744530798350,28.17516888,128.47,128.46,0.0001]
[1744530799777,28.17516888,128.47,128.45,0.0001]
[1744530799778,19.07613357,128.46,128.45,0.0001]
[1744530800074,28.17516888,128.46,128.45,0.0001]
[1744530800971,88.7839,128.47,128.45,0.0001]
[1744530801753,97.88293531,128.47,128.45,0.0001]
[1744530802062,16.88353531,128.46,128.45,0.0001]
[1744530802951,7.7845,128.46,128.45,0.0001]
[1744530803370,16.88353531,128.46,128.45,0.0001]
[1744530804975,35.95966888,128.46,128.45,0.0001]
[1744530805850,100.07613357,128.45,128.43,0.03]
[1744530806053,96.93903531,128.44,128.43,0.0001]
[1744530806872,123.80086888,128.44,128.42,0.0001]
[1744530807078,9.09903531,128.43,128.42,0.0001]
[1744530807279,28.17516888,128.43,128.41,0.0001]
[1744530807465,9.09903531,128.42,128.41,0.0001]
[1744530807655,44.79181043,128.4,128.38,0.03]
[1744530807856,90.57131012,128.4,128.38,0.03]
[1744530808461,54.17516888,128.4,128.38,0.03]
[1744530808976,61.96326888,128.4,128.38,0.03]
[1744530809357,67.10247288,128.4,128.38,0.03]
[1744530809851,48.02633931,128.4,128.38,0.03]
[1744530811377,67.10247288,128.4,128.38,0.03]
[1744530812464,48.02633931,128.4,128.38,0.03]
[1744530814977,7.7881,128.4,128.38,0.03]
[1744530815159,22.02633931,128.4,128.38,0.03]
[1744530819981,28.86633931,128.4,128.38,0.03]
[1744530824891,47.94247288,128.4,128.38,0.03]
[1744530825093,62.18071219,128.4,128.38,0.03]
[1744530825297,47.94247288,128.4,128.38,0.03]
[1744530829305,47.65814974,128.4,128.38,0.03]
[1744530829603,47.94247288,128.4,128.38,0.03]
[1744530830905,28.86633931,128.4,128.38,0.03]
[1744530831500,23.74040451,128.4,128.38,0.03]
[1744530835684,42.81653808,128.4,128.38,0.03]
[1744530838304,14.6281,128.4,128.38,0.03]
[1744530843205,23.74040451,128.4,128.38,0.03]
[1744530843406,14.6281,128.4,128.38,0.03]
[1744530847087,267.24,128.44,128.39,9.14230451]
[1744530847391,6.903,128.46,128.41,9.11230451]
[1744530847599,6.903,128.46,128.42,9.11230451]
[1744530847788,16.01530451,128.46,128.42,9.11230451]
[1744530848211,7.7851,128.45,128.42,9.11230451]
[1744530848391,7.7851,128.45,128.43,9.11230451]
[1744530849414,14.6875,128.46,128.43,9.11230451]
[1744530850108,14.6875,128.46,128.44,9.11230451]
[1744530850603,14.6875,128.46,128.43,9.11230451]
[1744530857307,9.11230451,128.44,128.39,0.03]
[1744530857619,9.11230451,128.4,128.39,0.03]
[1744530857806,15.95230451,128.4,128.39,0.03]
[1744530858005,35.02843808,128.4,128.39,0.03]
[1744530859122,42.81653808,128.4,128.39,0.03]
[1744530859294,42.81653808,128.4,128.38,0.03]
[1744530859498,9.11230451,128.39,128.38,0.03]
[1744530860318,23.74040451,128.4,128.38,0.03]
[1744530863703,14.6281,128.4,128.38,0.03]
[1744530867019,6.84,128.4,128.39,9.11230451]
[1744530867224,6.84,128.4,128.38,9.14230451]
[1744530870532,14.6281,128.4,128.38,9.14230451]
[1744530871026,14.6281,128.4,128.38,0.03]
[1744530872109,6.84,128.4,128.38,0.03]
[1744530872314,6.84,128.4,128.38,9.14230451]
[1744530874304,6.84,128.4,128.39,9.11230451]
[1744530875824,6.84,128.4,128.38,9.14230451]
[1744530876131,14.6281,128.4,128.38,9.14230451]
[1744530878405,6.84,128.4,128.38,9.14230451]
[1744530883134,7.7877,128.41,128.38,9.14230451]
[1744530883337,9.11230451,128.4,128.38,0.03]
[1744530884024,16.90000451,128.41,128.38,0.03]
[1744530884227,7.7877,128.41,128.38,0.03]
[1744530885233,16.90000451,128.41,128.38,0.03]
[1744530885837,7.7877,128.41,128.38,0.03]
[1744530887933,16.90000451,128.41,128.38,0.03]
[1744530889931,7.7877,128.41,128.38,0.03]
[1744530891735,7.7871,128.42,128.39,9.11230451]
[1744530891938,14.6271,128.42,128.39,9.11230451]
[1744530892139,14.6271,128.42,128.38,9.14230451]
[1744530896144,14.1271,128.42,128.38,9.14230451]
[1744530900144,13.6271,128.42,128.38,9.14230451]
[1744530913742,6.84,128.42,128.39,9.11230451]
[1744530913953,6.84,128.42,128.41,9.11230451]
[1744530916646,6.84,128.42,128.39,13.8377]
[1744530916846,6.84,128.42,128.4,9.11230451]
[1744530923145,6.84,128.42,128.41,9.11230451]
[1744530923842,6.903,128.46,128.41,9.11230451]
[1744530924042,6.903,128.46,128.43,9.11230451]
[1744530925261,14.6877,128.46,128.43,9.11230451]
[1744530928351,7.8477,128.46,128.44,9.11230451]
[1744530928548,7.8477,128.46,128.43,9.11230451]
[1744530929670,0.063,128.46,128.43,9.11230451]
[1744530930370,0.063,128.46,128.41,9.3735]
[1744530930575,0.063,128.46,128.43,9.11230451]
[1744530931459,9.17530451,128.46,128.41,9.11230451]
[1744530932348,7.7851,128.45,128.41,9.11230451]
[1744530934059,7.7851,128.45,128.42,9.11230451]
[1744530934380,0.063,128.46,128.42,9.11230451]
[1744530934979,0.063,128.46,128.43,9.11230451]
[1744530935567,0.063,128.46,128.44,9.11230451]
[1744530937663,0.063,128.46,128.43,9.11230451]
[1744530939078,0.063,128.46,128.45,9.11230451]
[1744530946689,0.063,128.46,128.45,16.89740451]
[1744530946880,0.063,128.46,128.45,9.11230451]
[1744530952897,0.063,128.46,128.45,35.97353808]
[1744530953476,0.063,128.48,128.46,19.07613357]
[1744530953685,0.063,128.48,128.47,9.11230451]
[1744530954095,0.063,128.48,128.47,16.89620451]
[1744530954296,0.063,128.48,128.47,35.97233808]
[1744530954482,0.063,128.52,128.47,74.04025612]
[1744530954684,0.063,128.52,128.51,9.11230451]
[1744530962100,0.063,128.52,128.51,16.89370451]
[1744530965991,0.063,128.52,128.51,9.11230451]
[1744530971732,0.063,128.52,128.5,9.11230451]
[1744530974310,0.063,128.52,128.51,9.11230451]
[1744530978918,0.063,128.52,128.48,36.44921804]
[1744530978919,0.063,128.52,128.46,81.6]
[1744530979230,0.063,128.52,128.46,26.43414886]
[1744530979437,0.063,128.52,128.49,9.11230451]
[1744530981433,1.5033,128.51,128.47,9.11230451]
[1744530982436,7.7821,128.5,128.47,9.11230451]
[1744530984442,7.7821,128.5,128.43,28.19121043]
[1744530984641,7.7821,128.5,128.46,9.11230451]
[1744530985333,16.89440451,128.5,128.45,9.11230451]
[1744530985742,16.89440451,128.5,128.43,15.69021494]
[1744530986041,7.7821,128.5,128.46,9.11230451]
[1744530986243,16.89440451,128.5,128.46,9.11230451]
[1744530990257,7.7821,128.5,128.46,9.11230451]
[1744530995129,9.285,128.51,128.48,9.11230451]
[1744530995329,9.285,128.51,128.49,9.11230451]
[1744530996952,9.285,128.51,128.48,9.11230451]
[1744531006349,0.063,128.52,128.5,9.11230451]
[1744531009062,0.063,128.52,128.49,9.11230451]
[1744531022150,0.063,128.52,128.5,9.11230451]
[1744531023670,0.063,128.52,128.51,9.11230451]
[1744531024546,0.063,128.52,128.51,9.53878922]
[1744531025972,0.063,128.52,128.51,17.32018922]
[1744531030473,0.063,128.52,128.51,16.89370451]
[1744531034076,0.063,128.52,128.51,9.11230451]
[1744531034267,0.063,128.52,128.5,9.11230451]
[1744531035670,0.063,128.52,128.51,9.11230451]
[1744531043279,0.063,128.52,128.5,9.11230451]
[1744531045885,0.063,128.52,128.51,9.11230451]
[1744531052688,0.063,128.52,128.5,9.11230451]
[1744531053276,0.063,128.52,128.51,9.11230451]
[1744531057394,0.063,128.52,128.49,9.11230451]
[1744531060079,0.063,128.52,128.5,9.11230451]
[1744531061370,0.063,128.52,128.51,9.11230451]
[1744531061570,0.063,128.52,128.5,9.11230451]
[1744531064901,0.063,128.52,128.51,9.11230451]
[1744531069411,0.063,128.52,128.51,16.89370451]
[1744531070293,0.063,128.52,128.51,9.11230451]
[1744531084487,0.063,128.52,128.49,7.7824]
[1744531084691,0.063,128.52,128.51,9.11230451]
[1744531085588,0.063,128.52,128.5,9.11230451]
[1744531086586,0.063,128.52,128.51,9.11230451]
[1744531090610,0.063,128.52,128.5,9.11230451]
[1744531090911,0.063,128.52,128.51,9.11230451]
[1744531098315,0.063,128.52,128.5,9.11230451]
[1744531099718,0.063,128.52,128.5,16.89420451]
[1744531099900,0.063,128.52,128.5,7.7819]
[1744531100106,0.063,128.52,128.47,41.16022265]
[1744531100301,9.17530451,128.52,128.47,50.27252716]
[1744531100505,9.17530451,128.52,128.47,41.16022265]
[1744531100918,9.17530451,128.52,128.47,50.27252716]
[1744531101312,7.7814,128.51,128.47,50.27252716]
[1744531101732,7.7814,128.51,128.47,38.12677525]
[1744531101936,16.89370451,128.51,128.47,38.12677525]
[1744531103729,16.95610451,128.52,128.47,38.12677525]
[1744531103911,0.063,128.52,128.5,9.11230451]
[1744531104116,0.063,128.52,128.51,9.11230451]
[1744531110642,0.063,128.52,128.51,16.89370451]
[1744531113153,0.063,128.52,128.49,8.20918471]
[1744531113449,0.063,128.52,128.51,9.11230451]
[1744531126958,0.063,128.52,128.5,9.11230451]
[1744531127460,9.17530451,128.52,128.47,29.01447074]
[1744531127662,9.11230451,128.51,128.47,29.01447074]
[1744531127963,9.17530451,128.52,128.47,38.12677525]
[1744531128164,9.17530451,128.52,128.5,9.11230451]
[1744531128165,0.063,128.52,128.5,9.11230451]
[1744531133444,0.063,128.52,128.49,9.11230451]
[1744531136646,0.063,128.52,128.48,9.11230451]
[1744531136849,9.17530451,128.52,128.48,9.11230451]
[1744531137772,7.7814,128.51,128.48,9.11230451]
[1744531137958,7.7814,128.51,128.47,38.12677525]
[1744531139969,14.5814,128.51,128.47,38.12677525]
[1744531140970,6.8,128.51,128.49,9.11230451]
[1744531143974,14.5815,128.51,128.49,9.11230451]
[1744531144273,6.8,128.51,128.49,9.11230451]
[1744531147069,0.063,128.52,128.49,9.11230451]
[1744531147775,0.063,128.52,128.48,7.7832]
[1744531148068,0.063,128.52,128.49,9.11230451]
[1744531148668,0.063,128.52,128.47,29.01447074]
[1744531148867,9.17530451,128.52,128.47,38.12677525]
[1744531149179,0.063,128.52,128.48,9.11230451]
[1744531151769,0.063,128.52,128.49,9.11230451]
[1744531153576,0.063,128.52,128.48,9.11230451]
[1744531163681,0.063,128.52,128.49,9.11230451]
[1744531163872,0.063,128.52,128.5,9.11230451]
[1744531165865,0.063,128.52,128.49,9.11230451]
[1744531167586,0.063,128.52,128.47,36.79807074]
[1744531167765,0.063,128.52,128.49,9.11230451]
[1744531170294,0.063,128.52,128.48,9.11230451]
[1744531170786,0.063,128.52,128.47,29.01447074]
[1744531170996,0.063,128.52,128.47,45.91057525]
[1744531171402,0.063,128.52,128.47,29.01447074]
[1744531171689,0.063,128.52,128.48,9.11230451]
[1744531173370,0.063,128.52,128.47,36.79837074]
[1744531173570,0.063,128.52,128.48,9.11230451]
[1744531174880,14.6444,128.52,128.48,9.11230451]
[1744531175492,34.33565337,128.49,128.43,12.14575191]
[1744531175677,10.67190451,128.48,128.43,21.25805642]
[1744531175876,6.8,128.47,128.43,21.25805642]
[1744531176193,15.91230451,128.47,128.43,12.14575191]
[1744531176795,7.7845,128.46,128.43,12.14575191]
[1744531177780,7.7845,128.46,128.42,9.14230451]
[1744531178290,16.89680451,128.46,128.42,9.14230451]
[1744531178867,6.8,128.47,128.44,9.11230451]
[1744531179093,89.3424,128.51,128.46,9.11230451]
[1744531179290,89.3424,128.51,128.47,9.11230451]
[1744531180173,7.7824,128.5,128.47,9.11230451]
[1744531180897,7.7824,128.5,128.46,9.11230451]
[1744531181192,23.69470451,128.5,128.46,9.11230451]
[1744531181574,6.8,128.49,128.46,9.11230451]
[1744531181980,15.91230451,128.49,128.45,9.11230451]
[1744531182692,23.37220451,128.48,128.43,9.11230451]
[1744531186686,14.2599,128.48,128.44,9.11230451]
[1744531187597,14.2599,128.48,128.42,0.03]
[1744531187780,14.2599,128.48,128.44,9.11230451]
[1744531190409,6.4766,128.48,128.45,9.11230451]
[1744531190604,14.583,128.49,128.47,9.11230451]
[1744531190813,14.583,128.49,128.46,9.11230451]
[1744531191096,14.583,128.49,128.45,9.11230451]
[1744531194589,6.8,128.49,128.47,9.11230451]
[1744531194782,6.8,128.49,128.48,9.11230451]
[1744531195580,6.8,128.49,128.44,26.0]
[1744531195581,14.5827,128.49,128.44,26.0]
[1744531195791,14.5827,128.49,128.45,9.11230451]
[1744531196604,14.5827,128.49,128.46,9.11230451]
[1744531197106,14.5827,128.49,128.45,9.11230451]
[1744531197983,23.69500451,128.49,128.44,26.0]
[1744531198185,14.5827,128.49,128.45,9.11230451]
[1744531201395,14.5827,128.49,128.46,9.11230451]
[1744531201901,14.5827,128.49,128.44,26.0]
[1744531202108,14.5827,128.49,128.46,9.11230451]
[1744531204988,6.8,128.49,128.47,9.11230451]
[1744531205193,81.0,128.51,128.48,9.11230451]
[1744531205393,7.8443,128.52,128.5,9.11230451]
[1744531205608,0.063,128.52,128.51,9.11230451]
[1744531209213,0.063,128.52,128.5,9.11230451]
[1744531209912,27.82495337,128.52,128.47,9.11230451]
[1744531210096,9.11230451,128.51,128.46,9.11230451]
[1744531210523,18.71264886,128.52,128.45,35.11230451]
[1744531210699,9.11230451,128.5,128.45,35.11230451]
[1744531211396,7.7827,128.49,128.45,35.11230451]
[1744531213818,9.11230451,128.49,128.45,35.11230451]
[1744531214616,17.17690451,128.49,128.45,35.11230451]
[1744531215020,7.7833,128.48,128.44,9.11230451]
[1744531215813,27.2415,128.48,128.44,9.11230451]
[1744531216014,36.35380451,128.48,128.43,9.11230451]
[1744531216418,27.2415,128.48,128.44,9.11230451]
[1744531219823,7.7833,128.48,128.44,9.11230451]
[1744531220523,7.7833,128.48,128.47,9.11230451]
[1744531220911,1.6265,128.52,128.47,9.11230451]
[1744531221117,7.7817,128.51,128.5,9.11230451]
[1744531221803,7.7817,128.51,128.49,9.11230451]
[1744531222422,9.4076,128.52,128.5,9.11230451]
[1744531223311,7.8441,128.52,128.5,9.11230451]
[1744531223520,0.063,128.52,128.5,9.11230451]
[1744531229124,0.063,128.52,128.51,9.11230451]
[1744531232931,9.17530451,128.52,128.45,1.5863]
[1744531233112,15.95530451,128.52,128.47,9.11230451]
[1744531233319,9.11230451,128.51,128.46,9.11230451]
[1744531233512,6.843,128.52,128.47,9.11230451]
[1744531233816,15.95530451,128.52,128.47,9.11230451]
[1744531234018,9.11230451,128.51,128.47,9.11230451]
[1744531234730,7.7821,128.5,128.46,9.11230451]
[1744531234910,7.7821,128.5,128.47,9.11230451]
[1744531235835,7.7814,128.51,128.44,7.7854]
[1744531236024,7.7814,128.51,128.47,9.11230451]
[1744531236616,7.7814,128.51,128.44,7.7854]
[1744531236915,7.7814,128.51,128.47,9.11230451]
[1744531238737,7.7814,128.51,128.44,7.7854]
[1744531238915,16.89370451,128.51,128.46,9.11230451]
[1744531239814,36.34740451,128.51,128.46,9.11230451]
[1744531240036,9.11230451,128.5,128.45,9.11230451]
[1744531240711,1.5803,128.48,128.44,9.11230451]
[1744531240916,10.69260451,128.48,128.43,34.07012411]
[1744531242022,7.7839,128.47,128.43,34.07012411]
[1744531243532,7.7839,128.47,128.44,9.11230451]
[1744531243841,7.7839,128.47,128.43,34.07012411]
[1744531244013,43.13590451,128.47,128.43,24.9578196]
[1744531246445,43.13590451,128.47,128.43,34.07012411]
[1744531246647,23.67620451,128.47,128.43,34.07012411]
[1744531246823,14.5639,128.47,128.46,9.11230451]
[1744531247342,14.5639,128.47,128.45,9.11230451]
[1744531247546,14.5639,128.47,128.46,9.11230451]
[1744531248929,6.78,128.47,128.46,9.11230451]
[1744531252246,1.5222,128.51,128.46,9.11230451]
[1744531252429,9.3037,128.51,128.5,9.11230451]
[1744531254531,1.5222,128.51,128.5,9.11230451]
[1744531254734,7.8441,128.52,128.5,9.11230451]
[1744531256555,0.063,128.52,128.51,9.11230451]
[1744531258567,0.063,128.52,128.51,16.89370451]
[1744531260538,0.063,128.52,128.51,9.11230451]
[1744531263757,0.063,128.52,128.5,7.7818]
[1744531263960,0.063,128.52,128.5,9.11230451]
[1744531264462,0.063,128.52,128.51,9.11230451]
[1744531267367,0.063,128.52,128.5,9.11230451]
[1744531271961,0.063,128.52,128.48,9.11230451]
[1744531271962,1.6655,128.52,128.48,9.11230451]
[1744531272156,1.6655,128.52,128.46,9.11230451]
[1744531272157,7.7821,128.5,128.46,9.11230451]
[1744531273048,16.89440451,128.5,128.46,9.11230451]
[1744531273370,16.89370451,128.51,128.46,9.11230451]
[1744531273749,7.7814,128.51,128.47,9.11230451]
[1744531275357,16.89370451,128.51,128.46,9.11230451]
[1744531285471,36.34740451,128.51,128.46,9.11230451]